[Event "Titled Tuesday Blitz June 21 Early 2022"]
[White "Steinberg, Nitzan"]
[Black "Cunha, Lucas Aguiar"]
[WhiteFideId "2801795"]
[BlackFideId "2125404"]
[WhiteElo "2471"]
[BlackElo "2328"]
[Result "1-0"]
[Round "07"]
[TimeControl "180+1"]
[Date "2022.06.21"]
[WhiteClock "0:00:34"]
[BlackClock "0:00:01"]

1. d4 {[%clk 0:03:00]}  Nf6 {[%clk 0:02:59]} 2. Nf3 {[%clk 0:03:01]}  c5 {[%clk 0:02:59]} 3. dxc5 {[%clk 0:02:59]}  e6 {[%clk 0:02:56]} 4. Nc3 {[%clk 0:03:00]}  Bxc5 {[%clk 0:02:56]} 5. e3 {[%clk 0:02:45]}  O-O {[%clk 0:02:55]} 6. Bd3 {[%clk 0:02:43]}  d5 {[%clk 0:02:55]} 7. O-O {[%clk 0:02:44]}  Nc6 {[%clk 0:02:56]} 8. a3 {[%clk 0:02:40]}  a5 {[%clk 0:02:54]} 9. e4 {[%clk 0:02:36]}  d4 {[%clk 0:02:54]} 10. Ne2 {[%clk 0:02:35]}  e5 {[%clk 0:02:54]} 11. h3 {[%clk 0:02:35]}  h6 {[%clk 0:02:54]} 12. Ng3 {[%clk 0:02:35]}  Be6 {[%clk 0:02:53]} 13. Nh2 {[%clk 0:02:32]}  Ba7 {[%clk 0:02:19]} 14. Bd2 {[%clk 0:02:29]}  Qe7 {[%clk 0:02:05]} 15. Qe1 {[%clk 0:02:24]}  Nd7 {[%clk 0:01:50]} 16. b4 {[%clk 0:02:19]}  axb4 {[%clk 0:01:51]} 17. axb4 {[%clk 0:02:20]}  Bb6 {[%clk 0:01:48]} 18. Rb1 {[%clk 0:02:15]}  Ra2 {[%clk 0:01:41]} 19. Ng4 {[%clk 0:02:14]}  Bxg4 {[%clk 0:01:27]} 20. hxg4 {[%clk 0:02:14]}  Rfa8 {[%clk 0:01:18]} 21. Qd1 {[%clk 0:02:11]}  Qe6 {[%clk 0:01:14]} 22. Qe2 {[%clk 0:02:02]}  Qg6 {[%clk 0:01:11]} 23. Nf5 {[%clk 0:01:59]}  Qf6 {[%clk 0:01:03]} 24. g3 {[%clk 0:01:58]}  Nf8 {[%clk 0:00:56]} 25. Kg2 {[%clk 0:01:56]}  Ne6 {[%clk 0:00:54]} 26. Rh1 {[%clk 0:01:53]}  Ng5 {[%clk 0:00:48]} 27. Rh5 {[%clk 0:01:51]}  Ne7 {[%clk 0:00:42]} 28. Rbh1 {[%clk 0:01:45]}  Ng6 {[%clk 0:00:41]} 29. f4 {[%clk 0:01:36]}  exf4 {[%clk 0:00:37]} 30. gxf4 {[%clk 0:01:36]}  Ne6 {[%clk 0:00:37]} 31. Qf2 {[%clk 0:01:28]}  Rc8 {[%clk 0:00:35]} 32. e5 {[%clk 0:01:25]}  Qd8 {[%clk 0:00:34]} 33. Nxh6+ {[%clk 0:01:18]}  gxh6 {[%clk 0:00:33]} 34. Rxh6 {[%clk 0:01:19]}  Nef8 {[%clk 0:00:31]} 35. f5 {[%clk 0:01:17]}  Qd5+ {[%clk 0:00:23]} 36. Kf1 {[%clk 0:01:03]}  Ra1+ {[%clk 0:00:20]} 37. Be1 {[%clk 0:01:03]}  Rxe1+ {[%clk 0:00:05]} 38. Kxe1 {[%clk 0:00:58]}  Qxe5+ {[%clk 0:00:05]} 39. Kf1 {[%clk 0:00:59]}  Nf4 {[%clk 0:00:05]} 40. Qh4 {[%clk 0:00:38]}  f6 {[%clk 0:00:01]} 41. Rxf6 {[%clk 0:00:35]}  Nxd3 {[%clk 0:00:01]} 42. Qg5+ {[%clk 0:00:34]} 1-0


[Site "https://www.chess.com"]

[Event "Titled Tuesday Blitz June 21 Early 2022"]
[White "Terry, Renato"]
[Black "Mindlin, Alon"]
[WhiteFideId "3803457"]
[BlackFideId "2800071"]
[WhiteElo "2577"]
[BlackElo "2390"]
[Result "0-1"]
[Round "07"]
[TimeControl "180+1"]
[Date "2022.06.21"]
[WhiteClock "0:00:03"]
[BlackClock "0:00:04"]

1. d4 {[%clk 0:03:00]}  Nf6 {[%clk 0:02:57]} 2. Bg5 {[%clk 0:03:01]}  Ne4 {[%clk 0:02:56]} 3. Bf4 {[%clk 0:03:00]}  d5 {[%clk 0:02:56]} 4. Nd2 {[%clk 0:02:58]}  Bf5 {[%clk 0:02:56]} 5. e3 {[%clk 0:02:52]}  e6 {[%clk 0:02:56]} 6. Nxe4 {[%clk 0:02:49]}  Bxe4 {[%clk 0:02:56]} 7. Nf3 {[%clk 0:02:49]}  Bd6 {[%clk 0:02:55]} 8. Bd3 {[%clk 0:02:49]}  Bxf4 {[%clk 0:02:50]} 9. exf4 {[%clk 0:02:50]}  Qf6 {[%clk 0:02:37]} 10. Bxe4 {[%clk 0:02:38]}  dxe4 {[%clk 0:02:37]} 11. Nd2 {[%clk 0:02:39]}  Qxd4 {[%clk 0:02:32]} 12. c3 {[%clk 0:02:38]}  Qd6 {[%clk 0:02:11]} 13. Qa4+ {[%clk 0:02:33]}  Nd7 {[%clk 0:02:10]} 14. Rd1 {[%clk 0:02:15]}  b5 {[%clk 0:01:50]} 15. Qxe4 {[%clk 0:02:11]}  O-O {[%clk 0:01:49]} 16. Nf3 {[%clk 0:01:56]}  Nc5 {[%clk 0:01:33]} 17. Rxd6 {[%clk 0:01:47]}  Nxe4 {[%clk 0:01:32]} 18. Rc6 {[%clk 0:01:47]}  Rfd8 {[%clk 0:01:25]} 19. Rxc7 {[%clk 0:01:41]}  Rac8 {[%clk 0:01:21]} 20. Rxc8 {[%clk 0:01:35]}  Rxc8 {[%clk 0:01:22]} 21. Ke2 {[%clk 0:01:36]}  a5 {[%clk 0:01:21]} 22. Rd1 {[%clk 0:01:32]}  f5 {[%clk 0:01:11]} 23. Nd4 {[%clk 0:01:16]}  b4 {[%clk 0:01:02]} 24. cxb4 {[%clk 0:01:08]}  axb4 {[%clk 0:01:03]} 25. f3 {[%clk 0:01:09]}  Nf6 {[%clk 0:01:01]} 26. Nxe6 {[%clk 0:01:09]}  Kf7 {[%clk 0:00:48]} 27. Nd4 {[%clk 0:01:04]}  g6 {[%clk 0:00:46]} 28. Rd2 {[%clk 0:00:55]}  Ra8 {[%clk 0:00:45]} 29. Nc6 {[%clk 0:00:51]}  Rxa2 {[%clk 0:00:40]} 30. Nxb4 {[%clk 0:00:51]}  Ra4 {[%clk 0:00:40]} 31. Nd3 {[%clk 0:00:52]}  Nd5 {[%clk 0:00:39]} 32. g3 {[%clk 0:00:51]}  Ra1 {[%clk 0:00:34]} 33. Nc5 {[%clk 0:00:44]}  Nb6 {[%clk 0:00:31]} 34. Rd6 {[%clk 0:00:41]}  Nc4 {[%clk 0:00:30]} 35. Rd7+ {[%clk 0:00:42]}  Kf6 {[%clk 0:00:29]} 36. Rxh7 {[%clk 0:00:37]}  Nxb2 {[%clk 0:00:30]} 37. g4 {[%clk 0:00:22]}  fxg4 {[%clk 0:00:29]} 38. fxg4 {[%clk 0:00:23]}  Nc4 {[%clk 0:00:29]} 39. h3 {[%clk 0:00:16]}  Nd6 {[%clk 0:00:09]} 40. Rd7 {[%clk 0:00:16]}  Ra2+ {[%clk 0:00:09]} 41. Kd1 {[%clk 0:00:15]}  Nf7 {[%clk 0:00:04]} 42. g5+ {[%clk 0:00:05]}  Nxg5 {[%clk 0:00:04]} 43. fxg5+ {[%clk 0:00:05]}  Kxg5 {[%clk 0:00:05]} 44. Rd4 {[%clk 0:00:03]}  Rh2 {[%clk 0:00:04]} 45. Ne6+ {[%clk 0:00:03]}  Kf6 {[%clk 0:00:03]} 46. Nf4 {[%clk 0:00:03]}  g5 {[%clk 0:00:04]} 0-1


[Site "https://www.chess.com"]

[Event "Titled Tuesday Blitz June 21 Early 2022"]
[White "Vakhlamov, Igor L."]
[Black "Dubov, Daniil"]
[WhiteFideId "24126748"]
[BlackFideId "24126055"]
[WhiteElo "2401"]
[BlackElo "2791"]
[Result "0-1"]
[Round "07"]
[TimeControl "180+1"]
[Date "2022.06.21"]
[WhiteClock "0:00:03"]
[BlackClock "0:00:05"]

1. e4 {[%clk 0:03:00]}  c5 {[%clk 0:02:58]} 2. Nf3 {[%clk 0:03:00]}  Nc6 {[%clk 0:02:57]} 3. Nc3 {[%clk 0:03:00]}  g6 {[%clk 0:02:55]} 4. Bb5 {[%clk 0:02:59]}  Bg7 {[%clk 0:02:54]} 5. O-O {[%clk 0:02:59]}  e5 {[%clk 0:02:49]} 6. d3 {[%clk 0:02:43]}  h6 {[%clk 0:02:44]} 7. a3 {[%clk 0:02:40]}  Nge7 {[%clk 0:02:42]} 8. b4 {[%clk 0:02:40]}  d6 {[%clk 0:02:40]} 9. Be3 {[%clk 0:02:29]}  b6 {[%clk 0:02:39]} 10. Nd5 {[%clk 0:02:25]}  O-O {[%clk 0:02:38]} 11. Bc4 {[%clk 0:02:20]}  Be6 {[%clk 0:02:31]} 12. Qb1 {[%clk 0:02:11]}  Bxd5 {[%clk 0:02:15]} 13. exd5 {[%clk 0:02:12]}  Nd4 {[%clk 0:02:16]} 14. Nxd4 {[%clk 0:01:59]}  cxd4 {[%clk 0:02:13]} 15. Bd2 {[%clk 0:01:59]}  Rc8 {[%clk 0:02:11]} 16. Re1 {[%clk 0:01:53]}  f5 {[%clk 0:02:08]} 17. a4 {[%clk 0:01:46]}  f4 {[%clk 0:01:59]} 18. a5 {[%clk 0:01:26]}  Qd7 {[%clk 0:01:51]} 19. axb6 {[%clk 0:01:21]}  axb6 {[%clk 0:01:45]} 20. f3 {[%clk 0:01:12]}  b5 {[%clk 0:01:34]} 21. Bb3 {[%clk 0:01:12]}  Nf5 {[%clk 0:01:34]} 22. Ra6 {[%clk 0:01:08]}  Ne3 {[%clk 0:01:33]} 23. Qa2 {[%clk 0:00:59]}  Kh7 {[%clk 0:01:21]} 24. Ra7 {[%clk 0:00:59]}  Qf5 {[%clk 0:01:20]} 25. Qa6 {[%clk 0:00:57]}  Nxc2 {[%clk 0:01:00]} 26. Qb7 {[%clk 0:00:44]}  Rg8 {[%clk 0:00:58]} 27. Re4 {[%clk 0:00:43]}  Ne3 {[%clk 0:00:56]} 28. Qxb5 {[%clk 0:00:39]}  Qg5 {[%clk 0:00:53]} 29. Bxe3 {[%clk 0:00:38]}  dxe3 {[%clk 0:00:48]} 30. Bc4 {[%clk 0:00:34]}  Qh4 {[%clk 0:00:44]} 31. h3 {[%clk 0:00:30]}  Ra8 {[%clk 0:00:41]} 32. Qa6 {[%clk 0:00:21]}  Qf2+ {[%clk 0:00:21]} 33. Kh2 {[%clk 0:00:21]}  Rxa7 {[%clk 0:00:14]} 34. Qxa7 {[%clk 0:00:22]}  Qd2 {[%clk 0:00:13]} 35. b5 {[%clk 0:00:21]}  Kh8 {[%clk 0:00:08]} 36. Qf7 {[%clk 0:00:12]}  e2 {[%clk 0:00:07]} 37. b6 {[%clk 0:00:06]}  e1=Q {[%clk 0:00:07]} 38. Rxe1 {[%clk 0:00:07]}  Qxe1 {[%clk 0:00:08]} 39. b7 {[%clk 0:00:08]}  Qg3+ {[%clk 0:00:08]} 40. Kg1 {[%clk 0:00:08]}  e4 {[%clk 0:00:07]} 41. Kf1 {[%clk 0:00:02]}  exf3 {[%clk 0:00:05]} 42. gxf3 {[%clk 0:00:03]}  Qxf3+ {[%clk 0:00:06]} 43. Ke1 {[%clk 0:00:03]}  Bc3# {[%clk 0:00:05]} 0-1


[Site "https://www.chess.com"]

[Event "Titled Tuesday Blitz June 21 Early 2022"]
[White "Vidonyak, Roman"]
[Black "Mangialardo, Tiago Carvalho"]
[WhiteFideId "14100622"]
[BlackFideId "2130718"]
[WhiteElo "2377"]
[BlackElo "2090"]
[Result "0-1"]
[Round "07"]
[TimeControl "180+1"]
[Date "2022.06.22"]
[WhiteClock "0:00:13"]
[BlackClock "0:00:06"]

1. d4 {[%clk 0:02:56]}  d5 {[%clk 0:02:56]} 2. c4 {[%clk 0:02:57]}  c6 {[%clk 0:02:57]} 3. Nf3 {[%clk 0:02:56]}  Nf6 {[%clk 0:02:57]} 4. Nc3 {[%clk 0:02:57]}  e6 {[%clk 0:02:56]} 5. g3 {[%clk 0:02:56]}  Be7 {[%clk 0:02:56]} 6. Bg2 {[%clk 0:02:57]}  O-O {[%clk 0:02:56]} 7. O-O {[%clk 0:02:57]}  Nbd7 {[%clk 0:02:55]} 8. b3 {[%clk 0:02:54]}  Re8 {[%clk 0:02:55]} 9. Bb2 {[%clk 0:02:48]}  Nf8 {[%clk 0:02:55]} 10. a3 {[%clk 0:02:47]}  Ng6 {[%clk 0:02:52]} 11. Ne5 {[%clk 0:02:42]}  Bd6 {[%clk 0:02:46]} 12. f4 {[%clk 0:02:39]}  b6 {[%clk 0:02:20]} 13. Qd2 {[%clk 0:02:25]}  Bb7 {[%clk 0:02:07]} 14. Rac1 {[%clk 0:02:21]}  Rc8 {[%clk 0:02:06]} 15. b4 {[%clk 0:02:19]}  c5 {[%clk 0:01:52]} 16. dxc5 {[%clk 0:01:54]}  bxc5 {[%clk 0:01:48]} 17. Nxg6 {[%clk 0:01:49]}  hxg6 {[%clk 0:01:45]} 18. cxd5 {[%clk 0:01:48]}  cxb4 {[%clk 0:01:31]} 19. axb4 {[%clk 0:01:03]}  Bxb4 {[%clk 0:01:27]} 20. e4 {[%clk 0:01:03]}  Qb6+ {[%clk 0:01:08]} 21. Kh1 {[%clk 0:01:00]}  Red8 {[%clk 0:00:46]} 22. Qd1 {[%clk 0:00:34]}  exd5 {[%clk 0:00:43]} 23. Nxd5 {[%clk 0:00:33]}  Rxc1 {[%clk 0:00:24]} 24. Nxf6+ {[%clk 0:00:32]}  gxf6 {[%clk 0:00:21]} 25. Qxc1 {[%clk 0:00:31]}  a5 {[%clk 0:00:13]} 26. Qa1 {[%clk 0:00:27]}  Be7 {[%clk 0:00:05]} 27. Rb1 {[%clk 0:00:25]}  Qf2 {[%clk 0:00:03]} 28. Rf1 {[%clk 0:00:18]}  Qe2 {[%clk 0:00:03]} 29. Bxf6 {[%clk 0:00:14]}  Rd2 {[%clk 0:00:03]} 30. Rg1 {[%clk 0:00:12]}  Bxe4 {[%clk 0:00:02]} 31. Qf1 {[%clk 0:00:08]}  Bxg2+ {[%clk 0:00:02]} 32. Qxg2 {[%clk 0:00:08]}  Qxg2+ {[%clk 0:00:02]} 33. Rxg2 {[%clk 0:00:09]}  Rxg2 {[%clk 0:00:03]} 34. Kxg2 {[%clk 0:00:09]}  Bxf6 {[%clk 0:00:03]} 35. Kf2 {[%clk 0:00:10]}  a4 {[%clk 0:00:04]} 36. Ke2 {[%clk 0:00:11]}  a3 {[%clk 0:00:04]} 37. Kd2 {[%clk 0:00:12]}  a2 {[%clk 0:00:05]} 38. Kc2 {[%clk 0:00:13]}  a1=Q {[%clk 0:00:06]} 39. Kd3 {[%clk 0:00:13]}  Qc3+ {[%clk 0:00:06]} 0-1


[Site "https://www.chess.com"]

[Event "Titled Tuesday Blitz June 21 Early 2022"]
[White "Williams, Simon K"]
[Black "Perez Leiva, Jerzy Jesus"]
[WhiteFideId "404454"]
[BlackFideId "3524337"]
[WhiteElo "2468"]
[BlackElo "2287"]
[Result "0-1"]
[Round "07"]
[TimeControl "180+1"]
[Date "2022.06.22"]
[WhiteClock "0:02:09"]
[BlackClock "0:01:53"]

1. d4 {[%clk 0:02:51]}  Nf6 {[%clk 0:02:59]} 2. g4 {[%clk 0:02:46]}  d5 {[%clk 0:02:54]} 3. g5 {[%clk 0:02:46]}  Ne4 {[%clk 0:02:54]} 4. Nf3 {[%clk 0:02:44]}  c5 {[%clk 0:02:51]} 5. dxc5 {[%clk 0:02:43]}  Nc6 {[%clk 0:02:50]} 6. c4 {[%clk 0:02:39]}  Qa5+ {[%clk 0:02:48]} 7. Nbd2 {[%clk 0:02:37]}  Qxc5 {[%clk 0:02:46]} 8. e3 {[%clk 0:02:35]}  Bg4 {[%clk 0:02:42]} 9. Be2 {[%clk 0:02:33]}  e6 {[%clk 0:02:31]} 10. a3 {[%clk 0:02:30]}  Be7 {[%clk 0:02:25]} 11. b4 {[%clk 0:02:26]}  Qb6 {[%clk 0:02:23]} 12. c5 {[%clk 0:02:25]}  Qc7 {[%clk 0:02:21]} 13. Bb2 {[%clk 0:02:20]}  O-O {[%clk 0:02:17]} 14. Rg1 {[%clk 0:02:16]}  Bh5 {[%clk 0:02:12]} 15. Nd4 {[%clk 0:02:10]}  Qxh2 {[%clk 0:01:53]} 16. N2f3 {[%clk 0:02:09]}  Qxf2# {[%clk 0:01:53]} 0-1


[Site "https://www.chess.com"]

[Event "Titled Tuesday Blitz June 21 Early 2022"]
[White "Zaloznyy, Mike"]
[Black "Avazkhonov, Alikhon"]
[WhiteFideId "2023075"]
[BlackFideId "14208504"]
[WhiteElo "2003"]
[BlackElo "1739"]
[Result "1-0"]
[Round "07"]
[TimeControl "180+1"]
[Date "2022.06.22"]
[WhiteClock "0:00:08"]
[BlackClock "0:00:06"]

1. Nf3 {[%clk 0:02:53]}  d5 {[%clk 0:02:59]} 2. e3 {[%clk 0:02:53]}  c6 {[%clk 0:02:55]} 3. c4 {[%clk 0:02:50]}  e6 {[%clk 0:02:54]} 4. Nc3 {[%clk 0:02:50]}  f5 {[%clk 0:02:54]} 5. b3 {[%clk 0:02:47]}  Nf6 {[%clk 0:02:54]} 6. Be2 {[%clk 0:02:48]}  Bd6 {[%clk 0:02:54]} 7. a4 {[%clk 0:02:43]}  Qe7 {[%clk 0:02:53]} 8. Bb2 {[%clk 0:02:40]}  O-O {[%clk 0:02:53]} 9. Qc1 {[%clk 0:02:41]}  a5 {[%clk 0:02:50]} 10. Ba3 {[%clk 0:02:40]}  Na6 {[%clk 0:02:50]} 11. Bxd6 {[%clk 0:02:40]}  Qxd6 {[%clk 0:02:51]} 12. O-O {[%clk 0:02:39]}  Bd7 {[%clk 0:02:50]} 13. cxd5 {[%clk 0:02:28]}  cxd5 {[%clk 0:02:43]} 14. Nb5 {[%clk 0:02:27]}  Bxb5 {[%clk 0:02:40]} 15. Bxb5 {[%clk 0:02:22]}  e5 {[%clk 0:02:39]} 16. Bxa6 {[%clk 0:02:16]}  Rxa6 {[%clk 0:02:38]} 17. Qc3 {[%clk 0:02:11]}  e4 {[%clk 0:02:27]} 18. Nd4 {[%clk 0:02:05]}  Ng4 {[%clk 0:02:24]} 19. g3 {[%clk 0:01:56]}  Qh6 {[%clk 0:02:03]} 20. h4 {[%clk 0:01:52]}  g5 {[%clk 0:01:36]} 21. Kg2 {[%clk 0:01:52]}  f4 {[%clk 0:01:30]} 22. Rh1 {[%clk 0:01:14]}  fxg3 {[%clk 0:01:29]} 23. f3 {[%clk 0:00:47]}  Nf2 {[%clk 0:00:51]} 24. hxg5 {[%clk 0:00:47]}  Qxg5 {[%clk 0:00:24]} 25. f4 {[%clk 0:00:45]}  Qg4 {[%clk 0:00:16]} 26. Qc7 {[%clk 0:00:40]}  Nxh1 {[%clk 0:00:15]} 27. Rxh1 {[%clk 0:00:40]}  Qg7 {[%clk 0:00:15]} 28. Qxg7+ {[%clk 0:00:28]}  Kxg7 {[%clk 0:00:16]} 29. f5 {[%clk 0:00:28]}  Rc8 {[%clk 0:00:12]} 30. Kxg3 {[%clk 0:00:27]}  Rf6 {[%clk 0:00:09]} 31. Kf4 {[%clk 0:00:26]}  Rcf8 {[%clk 0:00:05]} 32. Kg5 {[%clk 0:00:20]}  h6+ {[%clk 0:00:05]} 33. Kg4 {[%clk 0:00:19]}  R8f7 {[%clk 0:00:04]} 34. Rg1 {[%clk 0:00:18]}  Kh7 {[%clk 0:00:04]} 35. Kf4 {[%clk 0:00:17]}  Rg7 {[%clk 0:00:05]} 36. Rxg7+ {[%clk 0:00:15]}  Kxg7 {[%clk 0:00:06]} 37. Ke5 {[%clk 0:00:15]}  h5 {[%clk 0:00:05]} 38. Kxd5 {[%clk 0:00:13]}  h4 {[%clk 0:00:05]} 39. Kxe4 {[%clk 0:00:13]}  h3 {[%clk 0:00:06]} 40. Nf3 {[%clk 0:00:14]}  Rh6 {[%clk 0:00:05]} 41. Nh2 {[%clk 0:00:14]}  Rh4+ {[%clk 0:00:04]} 42. Ke5 {[%clk 0:00:14]}  Rb4 {[%clk 0:00:03]} 43. e4 {[%clk 0:00:12]}  Rxb3 {[%clk 0:00:03]} 44. d4 {[%clk 0:00:13]}  Rg3 {[%clk 0:00:03]} 45. Kf4 {[%clk 0:00:13]}  Rg2 {[%clk 0:00:03]} 46. Nf3 {[%clk 0:00:13]}  h2 {[%clk 0:00:03]} 47. Nxh2 {[%clk 0:00:14]}  Rxh2 {[%clk 0:00:04]} 48. Ke5 {[%clk 0:00:13]}  Ra2 {[%clk 0:00:04]} 49. Ke6 {[%clk 0:00:11]}  Rxa4 {[%clk 0:00:04]} 50. f6+ {[%clk 0:00:11]}  Kg6 {[%clk 0:00:05]} 51. f7 {[%clk 0:00:10]}  Rxd4 {[%clk 0:00:02]} 52. f8=Q {[%clk 0:00:10]}  Rxe4+ {[%clk 0:00:03]} 53. Kd5 {[%clk 0:00:10]}  Rb4 {[%clk 0:00:03]} 54. Qe8+ {[%clk 0:00:08]}  Kg5 {[%clk 0:00:03]} 55. Qe7+ {[%clk 0:00:08]}  Kf4 {[%clk 0:00:03]} 56. Qf8+ {[%clk 0:00:08]}  Ke3 {[%clk 0:00:03]} 57. Qh6+ {[%clk 0:00:06]}  Kd3 {[%clk 0:00:03]} 58. Qh3+ {[%clk 0:00:07]}  Kc2 {[%clk 0:00:04]} 59. Qg2+ {[%clk 0:00:06]}  Kb3 {[%clk 0:00:05]} 60. Qf3+ {[%clk 0:00:06]}  Ka4 {[%clk 0:00:05]} 61. Qd1+ {[%clk 0:00:06]}  Kb5 {[%clk 0:00:06]} 62. Qd3+ {[%clk 0:00:06]}  Kb6 {[%clk 0:00:06]} 63. Qe3+ {[%clk 0:00:07]}  Kc7 {[%clk 0:00:05]} 64. Qe7+ {[%clk 0:00:07]}  Kb6 {[%clk 0:00:06]} 65. Qd8+ {[%clk 0:00:07]}  Ka6 {[%clk 0:00:06]} 66. Qd6+ {[%clk 0:00:07]}  b6 {[%clk 0:00:05]} 67. Qb8 {[%clk 0:00:07]}  Rb5+ {[%clk 0:00:05]} 68. Kc6 {[%clk 0:00:07]}  Rc5+ {[%clk 0:00:06]} 69. Kd6 {[%clk 0:00:08]}  a4 {[%clk 0:00:06]} 70. Qa8+ {[%clk 0:00:08]}  Kb5 {[%clk 0:00:06]} 71. Qe8+ {[%clk 0:00:09]}  Kb4 {[%clk 0:00:07]} 72. Qe4+ {[%clk 0:00:10]}  Rc4 {[%clk 0:00:06]} 73. Qe1+ {[%clk 0:00:09]}  Kb3 {[%clk 0:00:06]} 74. Qb1+ {[%clk 0:00:08]}  Kc3 {[%clk 0:00:06]} 75. Qxb6 {[%clk 0:00:09]}  Rb4 {[%clk 0:00:07]} 76. Qa5 {[%clk 0:00:09]}  Kb3 {[%clk 0:00:07]} 77. Kc5 {[%clk 0:00:10]}  Rc4+ {[%clk 0:00:06]} 78. Kb5 {[%clk 0:00:10]}  a3 {[%clk 0:00:06]} 79. Qa8 {[%clk 0:00:08]}  Rb4+ {[%clk 0:00:05]} 80. Kc5 {[%clk 0:00:08]}  Ra4 {[%clk 0:00:05]} 81. Qf3+ {[%clk 0:00:07]}  Kb2 {[%clk 0:00:05]} 82. Qe2+ {[%clk 0:00:07]}  Kb3 {[%clk 0:00:05]} 83. Qd3+ {[%clk 0:00:08]}  Kb2 {[%clk 0:00:06]} 84. Kb5 {[%clk 0:00:07]}  Ra8 {[%clk 0:00:05]} 85. Qd4+ {[%clk 0:00:06]}  Kb1 {[%clk 0:00:04]} 86. Qe4+ {[%clk 0:00:07]}  Kb2 {[%clk 0:00:05]} 87. Qxa8 {[%clk 0:00:07]}  a2 {[%clk 0:00:06]} 88. Qg2+ {[%clk 0:00:07]}  Kb1 {[%clk 0:00:06]} 89. Kb4 {[%clk 0:00:07]}  a1=Q {[%clk 0:00:06]} 90. Kb3 {[%clk 0:00:08]} 1-0


[Site "https://www.chess.com"]

[Event "Titled Tuesday Blitz June 21 Early 2022"]
[White "Zierk, Steven"]
[Black "Andreikin, Dmitry"]
[WhiteFideId "2034255"]
[BlackFideId "4158814"]
[WhiteElo "2494"]
[BlackElo "2736"]
[Result "1-0"]
[Round "07"]
[TimeControl "180+1"]
[Date "2022.06.21"]
[WhiteClock "0:01:01"]
[BlackClock "0:00:12"]

1. e4 {[%clk 0:02:59]}  c5 {[%clk 0:02:58]} 2. Nf3 {[%clk 0:02:59]}  e6 {[%clk 0:02:57]} 3. d4 {[%clk 0:02:59]}  cxd4 {[%clk 0:02:58]} 4. Nxd4 {[%clk 0:03:00]}  Nc6 {[%clk 0:02:58]} 5. Nc3 {[%clk 0:03:00]}  a6 {[%clk 0:02:58]} 6. Be3 {[%clk 0:02:59]}  Nf6 {[%clk 0:02:58]} 7. f4 {[%clk 0:02:59]}  d6 {[%clk 0:02:56]} 8. Qf3 {[%clk 0:02:55]}  Bd7 {[%clk 0:02:55]} 9. O-O-O {[%clk 0:02:54]}  Qc7 {[%clk 0:02:50]} 10. Nxc6 {[%clk 0:02:50]}  Bxc6 {[%clk 0:02:50]} 11. g4 {[%clk 0:02:44]}  b5 {[%clk 0:02:47]} 12. g5 {[%clk 0:02:29]}  Nd7 {[%clk 0:02:46]} 13. f5 {[%clk 0:02:17]}  Ne5 {[%clk 0:02:43]} 14. Qh3 {[%clk 0:02:15]}  Bd7 {[%clk 0:02:25]} 15. fxe6 {[%clk 0:02:10]}  Bxe6 {[%clk 0:02:18]} 16. Qg2 {[%clk 0:02:10]}  g6 {[%clk 0:02:04]} 17. h4 {[%clk 0:02:03]}  Bg7 {[%clk 0:02:01]} 18. h5 {[%clk 0:02:02]}  O-O {[%clk 0:02:00]} 19. Nd5 {[%clk 0:01:52]}  Bxd5 {[%clk 0:01:58]} 20. Rxd5 {[%clk 0:01:53]}  Rfc8 {[%clk 0:01:53]} 21. Bd4 {[%clk 0:01:46]}  Qa5 {[%clk 0:01:47]} 22. Be2 {[%clk 0:01:30]}  Qxa2 {[%clk 0:01:45]} 23. Rxd6 {[%clk 0:01:25]}  Qa1+ {[%clk 0:01:16]} 24. Kd2 {[%clk 0:01:24]}  Qa4 {[%clk 0:01:17]} 25. c3 {[%clk 0:01:18]}  b4 {[%clk 0:01:13]} 26. hxg6 {[%clk 0:01:15]}  bxc3+ {[%clk 0:01:12]} 27. bxc3 {[%clk 0:01:16]}  hxg6 {[%clk 0:01:10]} 28. Qh2 {[%clk 0:01:10]}  Qa2+ {[%clk 0:00:56]} 29. Ke3 {[%clk 0:01:08]}  Qa5 {[%clk 0:00:56]} 30. Rd5 {[%clk 0:01:02]}  Rxc3+ {[%clk 0:00:53]} 31. Kf2 {[%clk 0:01:02]}  Ng4+ {[%clk 0:00:39]} 32. Bxg4 {[%clk 0:01:01]}  Bxd4+ {[%clk 0:00:36]} 33. Rxd4 {[%clk 0:01:01]}  Kf8 {[%clk 0:00:12]} 34. Qh8+ {[%clk 0:01:00]}  Ke7 {[%clk 0:00:12]} 35. Qf6+ {[%clk 0:01:01]} 1-0


[Site "https://www.chess.com"]

[Event "Titled Tuesday Blitz June 21 Early 2022"]
[White "Aaditya Dhingra"]
[Black "Thiel, Thomas"]
[WhiteFideId "25678191"]
[BlackFideId "4615964"]
[WhiteElo "1849"]
[BlackElo "2241"]
[Result "1/2-1/2"]
[Round "08"]
[TimeControl "180+1"]
[Date "2022.06.21"]
[WhiteClock "0:00:32"]
[BlackClock "0:00:59"]

1. e4 {[%clk 0:03:00]}  d5 {[%clk 0:02:59]} 2. exd5 {[%clk 0:03:00]}  Nf6 {[%clk 0:02:57]} 3. d4 {[%clk 0:02:56]}  Nxd5 {[%clk 0:02:56]} 4. c4 {[%clk 0:02:55]}  Nb6 {[%clk 0:02:55]} 5. Nc3 {[%clk 0:02:54]}  e5 {[%clk 0:02:54]} 6. d5 {[%clk 0:02:52]}  Bb4 {[%clk 0:02:52]} 7. Bd2 {[%clk 0:02:50]}  Bf5 {[%clk 0:02:51]} 8. a3 {[%clk 0:02:47]}  Bxc3 {[%clk 0:02:49]} 9. Bxc3 {[%clk 0:02:47]}  O-O {[%clk 0:02:48]} 10. Nf3 {[%clk 0:02:36]}  c6 {[%clk 0:02:46]} 11. d6 {[%clk 0:02:29]}  c5 {[%clk 0:02:38]} 12. Nxe5 {[%clk 0:02:21]}  Re8 {[%clk 0:02:37]} 13. Be2 {[%clk 0:02:20]}  N8d7 {[%clk 0:02:36]} 14. Nxd7 {[%clk 0:02:06]}  Qxd7 {[%clk 0:02:36]} 15. O-O {[%clk 0:02:04]}  Rad8 {[%clk 0:02:34]} 16. Bf3 {[%clk 0:01:39]}  Nxc4 {[%clk 0:02:31]} 17. Qd5 {[%clk 0:01:36]}  Nxd6 {[%clk 0:02:30]} 18. Qxc5 {[%clk 0:01:32]}  Ne4 {[%clk 0:02:16]} 19. Bxe4 {[%clk 0:01:30]}  Bxe4 {[%clk 0:02:15]} 20. Qg5 {[%clk 0:01:29]}  Bg6 {[%clk 0:02:06]} 21. h4 {[%clk 0:01:21]}  Qf5 {[%clk 0:02:03]} 22. Qxf5 {[%clk 0:01:17]}  Bxf5 {[%clk 0:02:02]} 23. Rfe1 {[%clk 0:01:16]}  f6 {[%clk 0:02:00]} 24. f3 {[%clk 0:01:14]}  Kf7 {[%clk 0:01:58]} 25. Kf2 {[%clk 0:01:14]}  Rxe1 {[%clk 0:01:54]} 26. Rxe1 {[%clk 0:01:12]}  Be6 {[%clk 0:01:54]} 27. h5 {[%clk 0:01:08]}  g6 {[%clk 0:01:52]} 28. Re4 {[%clk 0:01:02]}  Rd5 {[%clk 0:01:47]} 29. Rf4 {[%clk 0:00:56]}  Rf5 {[%clk 0:01:45]} 30. hxg6+ {[%clk 0:00:53]}  hxg6 {[%clk 0:01:44]} 31. Ra4 {[%clk 0:00:50]}  a6 {[%clk 0:01:42]} 32. Rb4 {[%clk 0:00:50]}  Rb5 {[%clk 0:01:41]} 33. Rxb5 {[%clk 0:00:50]}  axb5 {[%clk 0:01:40]} 34. Ke3 {[%clk 0:00:50]}  Bc4 {[%clk 0:01:39]} 35. Kd4 {[%clk 0:00:49]}  Ke6 {[%clk 0:01:39]} 36. Kc5 {[%clk 0:00:48]}  Bf1 {[%clk 0:01:33]} 37. g3 {[%clk 0:00:46]}  f5 {[%clk 0:01:18]} 38. Kb6 {[%clk 0:00:40]}  Bg2 {[%clk 0:01:13]} 39. Kxb7 {[%clk 0:00:37]}  Bxf3+ {[%clk 0:01:12]} 40. Kb6 {[%clk 0:00:37]}  Be2 {[%clk 0:01:12]} 41. Kc5 {[%clk 0:00:36]}  g5 {[%clk 0:01:10]} 42. Bd2 {[%clk 0:00:35]}  f4 {[%clk 0:01:08]} 43. gxf4 {[%clk 0:00:34]}  g4 {[%clk 0:01:07]} 44. Be1 {[%clk 0:00:33]}  Kf5 {[%clk 0:01:06]} 45. b3 {[%clk 0:00:31]}  Kxf4 {[%clk 0:01:03]} 46. a4 {[%clk 0:00:30]}  bxa4 {[%clk 0:01:02]} 47. bxa4 {[%clk 0:00:30]}  g3 {[%clk 0:01:01]} 48. Bxg3+ {[%clk 0:00:30]}  Kxg3 {[%clk 0:01:01]} 49. a5 {[%clk 0:00:31]}  Kf4 {[%clk 0:01:00]} 50. a6 {[%clk 0:00:32]}  Bxa6 {[%clk 0:00:59]} 1/2-1/2


[Site "https://www.chess.com"]